fUST/lending_fUST_20240222
["ID","MTS","AMOUNT","RATE_DAILY","PERIOD"]
[314785514,1708552244217,-752.87,0.00021012,2]
[314785515,1708552244225,-1670.3,0.00021012,2]
[314785516,1708552244235,-244.76,0.00021012,2]
[314785517,1708552244245,-888.99,0.00021012,2]
[314785518,1708552244254,-322.32371058,0.00021012,2]
[314785519,1708552244263,-1709.21,0.00021012,2]
[314785520,1708552244272,-771.58,0.00021012,2]
[314785521,1708552244282,-500.0,0.00021012,2]
[314785522,1708552244291,-500.0,0.00021012,2]
[314785523,1708552244300,-276.45683125,0.00021012,2]
[314785524,1708552244309,-500.0,0.00021012,2]
[314785525,1708552244318,-500.0,0.00021012,2]
[314785526,1708552244327,-500.0,0.00021012,2]
[314785527,1708552244336,-344.49428952,0.00021012,2]
[314785528,1708552244346,-500.0,0.00021012,2]
[314785529,1708552244355,-205.15570928,0.00021012,2]
[314785530,1708552244365,-500.0,0.00021012,2]
[314785531,1708552244374,-500.0,0.00021012,2]
[314785532,1708552244385,-500.0,0.00021012,2]
[314785533,1708552244394,-500.0,0.00021012,2]
[314785534,1708552244403,-500.0,0.00021012,2]
[314785535,1708552244413,-500.0,0.00021012,2]
[314785536,1708552244423,-577.5,0.00021012,2]
[314785537,1708552244432,-2837.73,0.00021013,2]
[314785538,1708552244442,-2347.63,0.00021013,2]
[314785539,1708552244451,-1673.67,0.00021013,2]
[314785540,1708552244460,-909.66,0.00021013,2]
[314785541,1708552244470,-1051.14,0.00021013,2]
[314785542,1708552244479,-4690.79,0.00021013,2]
[314785543,1708552244488,-500.0,0.00021014,2]
[314785544,1708552244498,-500.0,0.00021014,2]
[314785545,1708552244507,-316.9651994,0.00021096,2]
[314785546,1708552244517,-200.4553765,0.00021096,2]
[314785547,1708552244526,-610.66643982,0.0002111,2]
[314785548,1708552244535,-1000.0,0.0002111,2]
[314785549,1708552244545,-10110.14587603,0.0002111,2]
[314785550,1708552244554,-1000.0,0.0002111,2]
[314785551,1708552244563,-700.0,0.0002111,2]
[314785552,1708552244572,-187.48668881,0.0002111,2]
[314785553,1708552244582,-1000.0,0.0002111,2]
[314785554,1708552244591,-556.136402,0.0002111,2]
[314785555,1708552244600,-339.84968275,0.0002111,2]
[314785556,1708552244610,-1000.0,0.0002111,2]
[314785557,1708552244629,-300.0,0.00021193,2]
[314785558,1708552244639,-846.66,0.00021285,2]
[314785559,1708552244649,-4751.92,0.00021285,2]
[314785560,1708552244659,-4880.28,0.00021285,2]
[314785561,1708552244668,-500.0,0.00021285,2]
[314785562,1708552244678,-500.0,0.00021285,2]
[314785563,1708552244688,-500.0,0.00021285,2]
[314785564,1708552244698,-500.0,0.00021285,2]
[314785565,1708552244709,-500.0,0.00021285,2]
[314785566,1708552244718,-500.0,0.00021286,2]
[314785567,1708552244727,-679.1,0.00021286,2]
[314785568,1708552244737,-500.0,0.00021286,2]
[314785569,1708552244747,-500.0,0.00021286,2]
[314785570,1708552244757,-500.0,0.00021286,2]
[314785571,1708552244766,-500.0,0.00021286,2]
[314785572,1708552244776,-500.0,0.00021286,2]
[314785573,1708552244785,-1522.66,0.00021286,2]
[314785574,1708552244795,-500.0,0.00021286,2]
[314785575,1708552244805,-300.64737937,0.00021286,2]
[314785576,1708552244816,-500.0,0.00021286,2]
[314785577,1708552244827,-500.0,0.00021286,2]
[314785578,1708552244837,-500.0,0.00021286,2]
[314785579,1708552244846,-719.55,0.00021286,2]
[314785580,1708552244857,-2359.28,0.00021286,2]
[314785581,1708552244867,-749.61,0.00021286,2]
[314785582,1708552244876,-723.17,0.00021286,2]
[314785583,1708552244886,-1579.41,0.00021286,2]
[314785584,1708552244897,-752.87,0.00021286,2]
[314785585,1708552244907,-1670.3,0.00021286,2]
[314785586,1708552244916,-888.99,0.00021286,2]
[314785587,1708552244926,-1709.21,0.00021286,2]
[314785588,1708552244936,-771.58,0.00021286,2]
[314785589,1708552244945,-500.0,0.00021286,2]
[314785590,1708552244956,-577.5,0.00021286,2]
[314785591,1708552244965,-2837.73,0.00021287,2]
[314785592,1708552244974,-2347.63,0.00021287,2]
[314785593,1708552244984,-1673.67,0.00021287,2]
[314785594,1708552244994,-909.66,0.00021287,2]
[314785595,1708552245004,-1051.14,0.00021287,2]
[314785596,1708552245013,-4690.79,0.00021287,2]
[314785597,1708552245022,-378.14668048,0.00021288,2]
[314785598,1708552245031,-161.412037,0.0002137,2]
[314785599,1708552245040,-153.0,0.0002137,2]
[314785600,1708552245049,-153.0,0.0002137,2]
[314785601,1708552245059,-153.0,0.0002137,2]
[314785602,1708552245068,-153.0,0.0002137,2]
[314785603,1708552245077,-153.0,0.0002137,2]
[314785604,1708552245086,-300.0,0.00021374,2]
[314785605,1708552245095,-300.0,0.00021555,2]
[314785606,1708552245104,-846.66,0.00021559,2]
[314785607,1708552245113,-4751.92,0.00021559,2]
[314785608,1708552245122,-4880.28,0.00021559,2]
[314785609,1708552245131,-500.0,0.00021559,2]
[314785610,1708552245140,-500.0,0.00021559,2]
[314785611,1708552245149,-500.0,0.00021559,2]
[314785612,1708552245158,-500.0,0.00021559,2]
[314785613,1708552245167,-500.0,0.00021559,2]
[314785614,1708552245176,-500.0,0.0002156,2]
[314785615,1708552245185,-679.1,0.0002156,2]
[314785616,1708552245194,-500.0,0.0002156,2]
[314785617,1708552245203,-500.0,0.0002156,2]
[314785618,1708552245213,-500.0,0.0002156,2]
[314785619,1708552245222,-500.0,0.0002156,2]
[314785620,1708552245231,-500.0,0.0002156,2]
[314785621,1708552245240,-1522.66,0.0002156,2]
[314785622,1708552245249,-500.0,0.0002156,2]
[314785623,1708552245258,-500.0,0.0002156,2]
[314785624,1708552245267,-500.0,0.0002156,2]
[314785625,1708552245276,-500.0,0.0002156,2]
[314785626,1708552245285,-719.55,0.0002156,2]
[314785627,1708552245294,-2359.28,0.0002156,2]
[314785628,1708552245303,-749.61,0.0002156,2]
[314785629,1708552245312,-723.17,0.0002156,2]
[314785630,1708552245321,-1579.41,0.0002156,2]
[314785631,1708552245330,-752.87,0.0002156,2]
[314785632,1708552245339,-1670.3,0.0002156,2]
[314785633,1708552245348,-888.99,0.0002156,2]
[314785634,1708552245357,-1709.21,0.0002156,2]
[314785635,1708552245366,-771.58,0.0002156,2]
[314785636,1708552245375,-500.0,0.0002156,2]
[314785637,1708552245384,-577.5,0.0002156,2]
[314785638,1708552245393,-2837.73,0.00021561,2]
[314785639,1708552245403,-2347.63,0.00021561,2]
[314785640,1708552245412,-1673.67,0.00021561,2]
[314785641,1708552245421,-909.66,0.00021561,2]
[314785642,1708552245430,-1051.14,0.00021561,2]
[314785643,1708552245439,-4690.79,0.00021561,2]
[314785644,1708552245448,-200.4553765,0.00021644,2]
[314785645,1708552245459,-200.4553765,0.00021644,2]
[314785646,1708552245469,-200.4553765,0.00021644,2]
[314785647,1708552245479,-200.4553765,0.00021644,2]
[314785648,1708552245489,-200.4553765,0.00021644,2]
[314785649,1708552245500,-200.4553765,0.00021644,2]
[314785650,1708552245510,-200.4553765,0.00021644,2]
[314785651,1708552245674,-200.4553765,0.00021644,2]
[314785652,1708552245684,-200.4553765,0.00021644,2]
[314785653,1708552245694,-200.4553765,0.00021644,2]
[314785654,1708552245703,-200.4553765,0.00021644,2]
[314785655,1708552245713,-200.4553765,0.00021644,2]
[314785656,1708552245722,-200.4553765,0.00021644,2]
[314785657,1708552245732,-200.4553765,0.00021644,2]
[314785658,1708552245741,-200.4553765,0.00021644,2]
[314785659,1708552245750,-153.0,0.00021644,2]
[314785660,1708552245760,-153.0,0.00021644,2]
[314785661,1708552245769,-153.0,0.00021644,2]
[314785662,1708552245778,-153.0,0.00021644,2]
[314785663,1708552245787,-153.0,0.00021644,2]
[314785664,1708552245796,-153.0,0.00021644,2]
[314785665,1708552245806,-153.0,0.00021644,2]
[314785666,1708552245816,-153.0,0.00021644,2]
[314785667,1708552245827,-153.0,0.00021644,2]
[314785668,1708552245837,-153.0,0.00021644,2]
[314785669,1708552245846,-393.2863309,0.00021644,2]
[314785670,1708552245856,-300.0,0.00021736,2]
[314785671,1708552245866,-1380.68513505,0.00021787,2]
[314785672,1708552245875,-50000.0,0.00021793,2]
[314785673,1708552245885,-580.0,0.000218,2]
[314785674,1708552245894,-846.66,0.00021833,2]
[314785675,1708552245905,-4751.92,0.00021833,2]
[314785676,1708552245914,-4880.28,0.00021833,2]
[314785677,1708552245923,-500.0,0.00021833,2]
[314785678,1708552245932,-500.0,0.00021833,2]
[314785679,1708552245942,-500.0,0.00021833,2]
[314785680,1708552245951,-188.18932815,0.00021833,2]
[314785681,1708552245961,-500.0,0.00021833,2]
[314785682,1708552245970,-500.0,0.00021834,2]
[314785683,1708552245979,-679.1,0.00021834,2]
[314785684,1708552245988,-500.0,0.00021834,2]
[314785685,1708552245998,-500.0,0.00021834,2]
[314785686,1708552246007,-500.0,0.00021834,2]
[314785687,1708552246015,-500.0,0.00021834,2]
[314785688,1708552246024,-500.0,0.00021834,2]
[314785689,1708552246033,-1522.66,0.00021834,2]
[314785690,1708552246043,-500.0,0.00021834,2]
[314785691,1708552246053,-500.0,0.00021834,2]
[314785692,1708552246063,-500.0,0.00021834,2]
[314785693,1708552246072,-500.0,0.00021834,2]
[314785694,1708552246081,-719.55,0.00021834,2]
[314785695,1708552246090,-2359.28,0.00021834,2]
[314785696,1708552246100,-749.61,0.00021834,2]
[314785697,1708552246109,-723.17,0.00021834,2]
[314785699,1708552246118,-1579.41,0.00021834,2]
[314785700,1708552246127,-752.87,0.00021834,2]
[314785701,1708552246137,-1670.3,0.00021834,2]
[314785702,1708552246146,-888.99,0.00021834,2]
[314785703,1708552246155,-1709.21,0.00021834,2]
[314785704,1708552246164,-771.58,0.00021834,2]
[314785705,1708552246173,-500.0,0.00021834,2]
[314785706,1708552246182,-577.5,0.00021834,2]
[314785707,1708552246191,-2837.73,0.00021835,2]
[314785708,1708552246200,-2347.63,0.00021835,2]
[314785709,1708552246210,-1673.67,0.00021835,2]
[314785710,1708552246219,-909.66,0.00021835,2]
[314785711,1708552246228,-1051.14,0.00021835,2]
[314785713,1708552246237,-4690.79,0.00021835,2]
[314785715,1708552246247,-43344.05473261,0.00021859,2]
[314785717,1708552246257,-43344.05473261,0.00021878,2]
[314785718,1708552246267,-43344.05473261,0.00021887,2]
[314785719,1708552246276,-16404.38345706,0.000219,2]
[314785720,1708552246285,-500.0,0.00021917,2]
[314785721,1708552246295,-400.52042383,0.00021917,2]
[314785722,1708552246304,-500.0,0.00021917,2]
[314785723,1708552246314,-603.34260693,0.00021917,5]
[314785724,1708552246323,-300.0,0.00021917,2]
[314785725,1708552246332,-567.99,0.00021917,2]
[314785726,1708552246342,-10000.0,0.00021918,2]
[314785728,1708552246351,-153.0,0.00021918,2]
[314785729,1708552246360,-8225.6370858,0.00021989,2]
[314785731,1708552246369,-3146.25713957,0.00021999,2]
[314785733,1708552246379,-500.0,0.00021999,2]
[314785735,1708552246388,-500.0,0.00021999,2]
[314785737,1708552246397,-358.61017733,0.00021999,2]
[314785739,1708552246407,-500.0,0.00021999,2]
[314785741,1708552246416,-500.0,0.00021999,2]
[314785744,1708552246425,-500.0,0.00021999,2]
[314785747,1708552246435,-500.0,0.00021999,2]
[314785751,1708552246444,-500.0,0.00021999,2]
[314785752,1708552246454,-445.12735737,0.00021999,2]
[314785754,1708552246464,-500.0,0.00021999,2]
[314785757,1708552246474,-275.1841233,0.00021999,2]
[314785759,1708552246483,-500.0,0.00021999,2]
[314785761,1708552246492,-500.0,0.00021999,2]
[314785763,1708552246501,-500.0,0.00021999,2]
[314785764,1708552246511,-500.0,0.00021999,2]
[314785767,1708552246521,-500.0,0.00021999,2]
[314785769,1708552246530,-278.86175912,0.00021999,2]
[314785771,1708552246540,-500.0,0.00021999,2]
[314785772,1708552246549,-500.0,0.00021999,2]
[314785774,1708552246558,-500.0,0.00021999,2]
[314785776,1708552246567,-500.0,0.00021999,2]
[314785777,1708552246577,-500.0,0.00021999,2]
[314785779,1708552246586,-500.0,0.00021999,2]
[314785781,1708552246595,-500.0,0.00021999,2]
[314785783,1708552246604,-500.0,0.00021999,2]
[314785785,1708552246613,-500.0,0.00021999,2]
[314785787,1708552246622,-500.0,0.00021999,2]
[314785789,1708552246631,-500.0,0.00021999,2]
[314785791,1708552246640,-500.0,0.00021999,2]
[314785793,1708552246649,-259.53735768,0.00021999,2]
[314785795,1708552246658,-500.0,0.00021999,2]
[314785797,1708552246667,-500.0,0.00021999,2]
[314785799,1708552246676,-500.0,0.00021999,2]
[314785800,1708552246686,-500.0,0.00021999,2]
[314785802,1708552246696,-500.0,0.00021999,2]
[314785804,1708552246707,-500.0,0.00021999,2]
[314785806,1708552246716,-500.0,0.00021999,2]
[314785808,1708552246725,-391.81424811,0.00021999,2]
[314785809,1708552246734,-395.0,0.00021999,2]
[314785812,1708552246743,-500.0,0.00021999,2]
[314785814,1708552246752,-500.0,0.00021999,2]
[314785815,1708552246762,-500.0,0.00021999,2]
[314785818,1708552246773,-500.0,0.00021999,2]
[314785820,1708552246782,-500.0,0.00021999,2]
[314785822,1708552246791,-500.0,0.00021999,2]
[314785823,1708552246800,-500.0,0.00021999,2]
[314785825,1708552246809,-500.0,0.00021999,2]
[314785827,1708552246819,-500.0,0.00021999,2]
[314785829,1708552246831,-500.0,0.00021999,2]
[314785831,1708552246840,-500.0,0.00021999,2]
[314785833,1708552246849,-500.0,0.00021999,2]
[314785835,1708552246859,-500.0,0.00021999,2]
[314785837,1708552246869,-500.0,0.00021999,2]
[314785839,1708552246878,-500.0,0.00021999,2]
[314785841,1708552246887,-500.0,0.00021999,2]
[314785843,1708552246897,-600.0,0.00021999,2]
[314785845,1708552246907,-500.0,0.00021999,2]
[314785847,1708552246916,-250.0,0.00021999,2]
[314785849,1708552246927,-258003.22690968,0.00022,2]
[314785852,1708552246944,-371.3167664,0.00022,2]
[314786042,1708553437816,-203.69331755,0.0002,2]
[314786044,1708553437826,-500.0,0.00020463,2]
[314786046,1708553437835,-500.0,0.00020463,2]
[314786048,1708553437845,-500.0,0.00020463,2]
[314786050,1708553437856,-1184.56,0.00020463,2]
[314786052,1708553437866,-564.65,0.00020463,2]
[314786054,1708553437875,-1252.72,0.00020463,2]
[314786056,1708553437884,-500.0,0.00020463,2]
[314786058,1708553437894,-500.0,0.00020463,2]
[314786060,1708553437903,-500.0,0.00020463,2]
[314786062,1708553437912,-500.0,0.00020463,2]
[314786064,1708553437922,-500.0,0.00020463,2]
[314786066,1708553437932,-275.96923853,0.00020463,2]
[314786068,1708553437941,-500.0,0.00020463,2]
[314786070,1708553437951,-500.0,0.00020463,2]
[314786072,1708553437961,-500.0,0.00020463,2]
[314786074,1708553437970,-500.0,0.00020463,2]
[314786077,1708553437981,-171.80031986,0.00020463,2]
[314786079,1708553437990,-500.0,0.00020463,2]
[314786081,1708553437999,-562.21,0.00020463,2]
[314786082,1708553438009,-500.0,0.00020463,2]
[314786085,1708553438019,-1141.99,0.00020463,2]
[314786086,1708553438028,-487.40712406,0.00020463,2]
[314786400,1708553441008,-3030.68287594,0.00020463,2]
[314786402,1708553441018,-1769.46,0.00020463,2]
[314786404,1708553441028,-666.74,0.00020463,2]
[314786406,1708553441038,-500.0,0.00020463,2]
[314786408,1708553441048,-3234.59102203,0.00020566,2]
[314786410,1708553441057,-1383.23351093,0.00020567,2]
[314786411,1708553441066,-2279.73663606,0.00020567,2]
[314797298,1708553650992,169.725629,0.00019267,2]
[314797299,1708553940891,1154.9602321,0.00019315,2]
[314797300,1708554012261,253.111755,0.00019233,2]
[314797301,1708554064525,163.55377005,0.00019441,2]
[314797303,1708554143014,24900.0,0.00019258,2]
[314797338,1708554633031,-186.38213482,0.000199,2]
[314797339,1708554633044,-155.0341075,0.0002,2]
[314797340,1708554633054,-22.77459151,0.00020036,2]
[314797357,1708554637996,-148.66665979,0.00020036,2]
[314797359,1708554638006,-4398.02,0.00020558,3]
[314797361,1708554638017,-272.44630263,0.00020558,3]
[314797363,1708554638029,-3392.57369737,0.00020558,3]
[314797365,1708554638038,-3042.0607809,0.00020558,3]
[314797366,1708554638049,-12.1192191,0.00020558,3]
[314797367,1708554638058,-300.0,0.00020564,2]
[314797368,1708554638067,-3660.21,0.00020565,2]
[314797369,1708554638077,-500.0,0.00020565,2]
[314797370,1708554638087,-500.0,0.00020565,2]
[314797371,1708554638096,-500.0,0.00020565,2]
[314797372,1708554638106,-500.0,0.00020565,2]
[314797373,1708554638115,-500.0,0.00020566,2]
[314797375,1708554638124,-539.66,0.00020566,2]
[314797376,1708554638133,-542.38,0.00020566,2]
[314797378,1708554638142,-634.99,0.00020566,2]
[314797379,1708554638150,-578.69,0.00020566,2]
[314797380,1708554638159,-912.26916254,0.00020566,2]
[314797381,1708554638170,-2651.67083746,0.00020566,2]
[314797382,1708554638179,-535.1,0.00020566,2]
[314797383,1708554638188,-2381.99,0.00020566,2]
[314797384,1708554638197,-500.0,0.00020566,2]
[314797385,1708554638206,-2720.26336394,0.00020567,2]
[314797386,1708554638215,-500.0,0.00020567,2]
[314797387,1708554638225,-500.0,0.00020567,2]
[314797388,1708554638233,-500.0,0.00020567,2]
[314797389,1708554638243,-500.0,0.00020567,2]
[314797390,1708554638252,-500.0,0.00020567,2]
[314797392,1708554638261,-582.03,0.00020567,2]
[314797393,1708554638271,-500.0,0.00020567,2]
[314797396,1708554638280,-500.0,0.00020567,2]
[314797398,1708554638289,-500.0,0.00020567,2]
[314797400,1708554638298,-500.0,0.00020567,2]
[314797402,1708554638308,-205.30958413,0.00020567,2]
[314797403,1708554638317,-500.0,0.00020567,2]
[314797405,1708554638327,-500.0,0.00020567,2]
[314797408,1708554638336,-542.55,0.00020567,2]
[314797410,1708554638346,-500.0,0.00020567,2]
[314797412,1708554638356,-500.0,0.00020567,2]
[314797414,1708554638365,-1354.95,0.00020567,2]
[314797416,1708554638374,-500.0,0.00020567,2]
[314797418,1708554638384,-211.75774823,0.00020567,2]
[314797420,1708554638393,-500.0,0.00020567,2]
[314797422,1708554638402,-500.0,0.00020567,2]
[314797423,1708554638412,-500.0,0.00020567,2]
[314797426,1708554638422,-1000.0,0.00020567,2]
[314797428,1708554638432,-500.0,0.00020567,2]
[314797430,1708554638441,-570.75979419,0.00020567,2]
[314797432,1708554638450,-500.0,0.00020567,2]
[314797433,1708554638460,-500.0,0.00020567,2]
[314797435,1708554638469,-500.0,0.00020567,2]
[314797437,1708554638478,-500.0,0.00020567,2]
[314797439,1708554638487,-500.0,0.00020567,2]
[314797442,1708554638497,-518.14198464,0.00020567,2]
[314797443,1708554638506,-500.0,0.00020567,2]
[314797446,1708554638516,-500.0,0.00020567,2]
[314797447,1708554638525,-500.0,0.00020567,2]
[314797449,1708554638535,-625.4404582,0.00020567,2]
[314797452,1708554638546,-1858.41,0.00020567,2]
[314797454,1708554638556,-500.0,0.00020567,2]
[314797456,1708554638566,-500.0,0.00020567,2]
[314797458,1708554638575,-500.0,0.00020567,2]
[314797460,1708554638584,-1225.2,0.00020567,2]
[314797461,1708554638594,-500.0,0.00020567,2]
[314797464,1708554638603,-658.53,0.00020567,2]
[314797466,1708554638612,-500.0,0.00020567,2]
[314797468,1708554638622,-806.52,0.00020567,2]
[314797469,1708554638631,-1460.21,0.00020567,2]
[314797471,1708554638641,-103.92635374,0.00020567,2]
[314797474,1708554638654,-95.57083639,0.00020567,2]
[314797476,1708554638663,-500.0,0.00020567,2]
[314797478,1708554638672,-563.68,0.00020567,2]
[314797480,1708554638681,-513.80847959,0.00020567,2]
[314797482,1708554638690,-500.0,0.00020567,2]
[314797484,1708554638700,-18671.57373991,0.00020568,2]
[314797486,1708554638710,-500.0,0.00020568,2]
[314797488,1708554638719,-500.0,0.00020568,2]
[314797490,1708554638728,-500.0,0.00020568,2]
[314797492,1708554638738,-509.33,0.00020568,2]
[314797493,1708554638748,-500.0,0.00020568,2]
[314797495,1708554638757,-1760.73,0.00020568,2]
[314797497,1708554638767,-1255.25,0.00020568,2]
[314797499,1708554638776,-500.0,0.00020568,2]
[314797501,1708554638785,-500.0,0.00020568,2]
[314797503,1708554638794,-454.67949175,0.00020568,2]
[314797948,1708554643066,-2545.15,0.00020558,3]
[314797950,1708554643077,-295.68050825,0.00020568,2]
[314797952,1708554643087,-234.83983009,0.00020568,2]
[314800864,1708554838512,5956.3949695,0.000205,45]
[314800906,1708555834596,-155.04341216,0.00019542,2]
[314800908,1708555834605,-247.561794,0.00019543,2]
[314800909,1708555834614,-4077.08206741,0.00019558,2]
[314800911,1708555834627,-1018.97626669,0.00019558,2]
[314800912,1708555834637,-182.95614973,0.00020465,2]
[314800914,1708555834646,-300.0,0.00020555,2]
[314800916,1708555834655,-523.91709869,0.00020556,3]
[314800999,1708555838171,-3079.11290131,0.00020556,3]
[314801001,1708555838180,-3002.53,0.00020556,3]
[314801003,1708555838189,-2502.11,0.00020556,3]
[314801005,1708555838198,-2085.09,0.00020556,3]
[314801007,1708555838207,-2021.04136048,0.00020565,4]
[314801061,1708555841374,-590.51593427,0.00020565,4]
[314801074,1708555843325,-1158.72064682,0.00020565,4]
[314801080,1708555846241,-562.64753709,0.00020565,4]
[314801081,1708555846250,-500.0,0.00020565,2]
[314801082,1708555846259,-512.8,0.00020565,2]
[314801083,1708555846268,-2282.74,0.00020565,2]
[314801084,1708555846277,-1687.36,0.00020565,2]
[314801085,1708555846286,-1202.95,0.00020565,2]
[314801086,1708555846296,-265.16016991,0.00020565,2]
[314801087,1708555846305,-500.0,0.00020565,2]
[314801088,1708555846313,-500.0,0.00020565,2]
[314801089,1708555846322,-517.17,0.00020565,2]
[314801090,1708555846332,-719.09,0.00020565,2]
[314801091,1708555846341,-608.53,0.00020565,2]
[314801092,1708555846350,-1412.18,0.00020565,2]
[314801093,1708555846359,-519.78,0.00020565,2]
[314801094,1708555846369,-3507.7,0.00020565,2]
[314801095,1708555846378,-500.0,0.00020565,2]
[314801096,1708555846388,-867.06,0.00020565,2]
[314801097,1708555846397,-500.0,0.00020565,2]
[314801098,1708555846407,-3415.44,0.00020565,2]
[314801099,1708555846416,-500.0,0.00020565,2]
[314801100,1708555846425,-500.0,0.00020565,2]
[314801101,1708555846435,-554.57,0.00020565,2]
[314801102,1708555846444,-500.0,0.00020565,2]
[314801103,1708555846453,-500.0,0.00020565,2]
[314801104,1708555846462,-500.0,0.00020565,2]
[314801105,1708555846471,-500.0,0.00020565,2]
[314801106,1708555846480,-4232.3,0.00020565,2]
[314801107,1708555846489,-500.0,0.00020565,2]
[314801108,1708555846498,-500.0,0.00020565,2]
[314801109,1708555846506,-1780.97,0.00020565,2]
[314801110,1708555846515,-500.37578714,0.00020566,2]
[314801111,1708555846524,-525.60985339,0.00020566,2]
[314801112,1708555846533,-500.0,0.00020566,2]
[314801113,1708555846542,-500.0,0.00020566,2]
[314801114,1708555846552,-500.0,0.00020566,2]
[314801115,1708555846561,-500.0,0.00020566,2]
[314801116,1708555846571,-527.46681616,0.00020566,2]
[314801117,1708555846580,-500.0,0.00020566,2]
[314801118,1708555846590,-500.0,0.00020566,2]
[314801119,1708555846599,-500.0,0.00020566,2]
[314801120,1708555846608,-500.0,0.00020566,2]
[314801121,1708555846617,-500.0,0.00020566,2]
[314801122,1708555846626,-500.0,0.00020566,2]
[314801123,1708555846636,-500.0,0.00020566,2]
[314801124,1708555846645,-528.64,0.00020566,2]
[314801125,1708555846654,-500.0,0.00020566,2]
[314801126,1708555846662,-561.77,0.00020566,2]
[314801127,1708555846672,-500.0,0.00020566,2]
[314801128,1708555846681,-500.0,0.00020566,2]
[314801129,1708555846690,-500.0,0.00020566,2]
[314801130,1708555846699,-500.0,0.00020566,2]
[314801131,1708555846708,-500.0,0.00020566,2]
[314801132,1708555846717,-500.0,0.00020566,2]
[314801133,1708555846726,-500.0,0.00020566,2]
[314801134,1708555846735,-1298.49,0.00020566,2]
[314801135,1708555846744,-500.0,0.00020566,2]
[314801136,1708555846754,-253.71,0.00020566,2]
[314801137,1708555846763,-500.0,0.00020566,2]
[314801138,1708555846772,-500.0,0.00020566,2]
[314801139,1708555846781,-500.0,0.00020566,2]
[314801140,1708555846790,-500.0,0.00020566,2]
[314801141,1708555846799,-500.0,0.00020566,2]
[314801142,1708555846808,-500.0,0.00020566,2]
[314801143,1708555846817,-500.0,0.00020566,2]
[314801144,1708555846827,-500.0,0.00020566,2]
[314801145,1708555846836,-500.0,0.00020566,2]
[314801146,1708555846845,-500.0,0.00020566,2]
[314801147,1708555846855,-500.0,0.00020566,2]
[314801148,1708555846864,-500.0,0.00020566,2]
[314801149,1708555846873,-500.0,0.00020566,2]
[314801150,1708555846882,-500.0,0.00020566,2]
[314801151,1708555846891,-500.0,0.00020566,2]
[314801152,1708555846901,-500.0,0.00020566,2]
[314801153,1708555846912,-500.0,0.00020566,2]
[314801154,1708555846921,-500.0,0.00020566,2]
[314801155,1708555846930,-500.0,0.00020566,2]
[314801156,1708555846939,-500.0,0.00020566,2]
[314801157,1708555846950,-597.96,0.00020566,2]
[314801158,1708555846961,-772.92,0.00020566,2]
[314801159,1708555846970,-1285.54,0.00020566,2]
[314801160,1708555846980,-631.09,0.00020566,2]
[314801161,1708555846990,-1399.37,0.00020566,2]
[314801162,1708555847000,-500.0,0.00020566,2]
[314801163,1708555847010,-500.0,0.00020567,2]
[314801164,1708555847020,-954.13671732,0.00020573,2]
[314801165,1708555847030,-5000.0,0.00020573,2]
[314801166,1708555847038,-5000.0,0.00020574,2]